bitfinex-derivatives/quotes_SOLF0:USTF0_20250625
["timestamp","ask_amount","ask_price","bid_price","bid_amount"]
[1750844481045,66.9,145.43,145.3,2.2027]
[1750844481242,5.65389428,145.36,145.3,2.2027]
[1750844481438,5.65389428,145.36,145.27,5.65389428]
[1750844481646,6.8758,145.37,145.29,5.65389428]
[1750844481845,7.04429428,145.4,145.29,5.65389428]
[1750844482045,5.65389428,145.4,145.31,5.65389428]
[1750844482444,2.3169,145.41,145.31,5.65389428]
[1750844482647,6.8744,145.4,145.34,6.8764]
[1750844482848,2.3169,145.41,145.31,5.65389428]
[1750844483047,7.97079428,145.41,145.31,5.65389428]
[1750844483241,6.8741,145.4,145.34,6.8764]
[1750844483453,7.97079428,145.41,145.34,6.8764]
[1750844483652,7.97079428,145.41,145.31,5.65389428]
[1750844484155,7.97079428,145.41,145.29,62.0]
[1750844484358,2.3169,145.41,145.32,5.65389428]
[1750844484548,2.3169,145.41,145.34,5.65389428]
[1750844484853,9.1905,145.41,145.36,6.8758]
[1750844485456,6.8744,145.4,145.34,5.65389428]
[1750844485850,7.97079428,145.41,145.32,5.65389428]
[1750844486554,6.8748,145.39,145.34,6.8765]
[1750844486952,6.8748,145.39,145.31,5.65389428]
[1750844487157,2.3169,145.41,145.33,5.65389428]
[1750844487455,72.55389428,145.43,145.35,5.65389428]
[1750844487649,6.8722,145.44,145.34,135.6886]
[1750844487855,7.86929428,145.47,145.38,5.65389428]
[1750844488246,7.86929428,145.47,145.36,5.65389428]
[1750844488849,6.8718,145.45,145.4,6.8737]
[1750844489051,6.8718,145.45,145.36,5.65389428]
[1750844489959,6.8722,145.44,145.36,5.65389428]
[1750844490758,6.8722,145.44,145.4,6.874]
[1750844493762,6.8718,145.45,145.41,6.8735]
[1750844493964,12.52569428,145.45,145.41,6.8735]
[1750844494263,6.8721,145.44,145.41,6.8735]
[1750844494658,5.65389428,145.45,145.41,6.8735]
[1750844494860,12.52579428,145.45,145.36,5.65389428]
[1750844495265,71.42,145.48,145.38,5.65389428]
[1750844495565,77.07389428,145.48,145.38,5.65389428]
[1750844495765,6.8709,145.47,145.43,6.8723]
[1750844496064,6.8709,145.47,145.38,5.65389428]
[1750844496470,6.8709,145.47,145.43,6.8723]
[1750844496960,77.07389428,145.48,145.38,5.65389428]
[1750844497265,5.65389428,145.44,145.35,4.5003]
[1750844497565,12.52639428,145.44,145.4,6.8737]
[1750844497754,6.8725,145.44,145.4,6.8737]
[1750844497957,12.52639428,145.44,145.4,6.8737]
[1750844498167,6.8727,145.43,145.4,6.8737]
[1750844498963,12.52609428,145.44,145.4,6.8737]
[1750844499165,5.65389428,145.45,145.35,10.15419428]
[1750844499359,71.42,145.48,145.35,10.15419428]
[1750844499554,6.8722,145.44,145.4,6.8737]
[1750844499758,6.8722,145.44,145.35,10.15419428]
[1750844500168,6.8728,145.43,145.35,2.2978]
[1750844500369,5.65389428,145.41,145.35,2.2978]
[1750844500669,6.874,145.4,145.35,2.2978]
[1750844500864,5.65389428,145.37,145.28,75.01389428]
[1750844501173,5.65389428,145.37,145.31,2.408]
[1750844501762,12.52959428,145.37,145.33,6.877]
[1750844501972,14.93852807,145.47,145.29,4.8082]
[1750844501973,5.65389428,145.4,145.29,4.8082]
[1750844502157,69.36,145.42,145.29,4.8082]
[1750844502158,5.65389428,145.36,145.29,4.8082]
[1750844502362,5.65389428,145.36,145.32,6.8776]
[1750844502670,5.65389428,145.36,145.29,2.4286]
[1750844502864,5.65389428,145.36,145.31,6.8778]
[1750844503063,5.65389428,145.36,145.29,2.4286]
[1750844503371,12.52959428,145.37,145.33,6.8771]
[1750844503773,5.65389428,145.37,145.29,2.4286]
[1750844503965,6.8761,145.36,145.32,6.8775]
[1750844504570,6.8761,145.36,145.33,6.8773]
[1750844504871,5.65389428,145.37,145.29,2.4286]
[1750844505373,12.52949428,145.37,145.29,2.4286]
[1750844505565,5.65389428,145.37,145.29,2.4286]
[1750844505871,5.65389428,145.37,145.34,6.8766]
[1750844506071,5.65389428,145.37,145.29,2.4286]
[1750844506574,7.91659428,145.39,145.3,5.65389428]
[1750844506966,7.91659428,145.39,145.29,2.4286]
[1750844507173,6.8752,145.38,145.29,2.4286]
[1750844507672,12.52949428,145.37,145.29,2.4286]
[1750844508174,12.52949428,145.37,145.33,6.877]
[1750844508371,12.52949428,145.37,145.29,2.4286]
[1750844508675,12.52949428,145.37,145.34,6.8767]
[1750844508875,5.65389428,145.37,145.34,6.8767]
[1750844509578,12.52939428,145.37,145.33,6.8771]
[1750844509778,12.52939428,145.37,145.29,2.4286]
[1750844510178,12.52939428,145.37,145.33,6.877]
[1750844510476,6.8759,145.36,145.33,6.877]
[1750844510678,5.65389428,145.37,145.29,2.4286]
[1750844510881,5.65389428,145.37,145.33,6.8769]
[1750844511175,6.8756,145.37,145.29,2.4286]
[1750844511379,12.52949428,145.37,145.29,2.4286]
[1750844511980,5.65389428,145.37,145.29,2.4286]
[1750844512178,5.65389428,145.38,145.29,2.4286]
[1750844512670,12.52889428,145.38,145.35,6.8761]
[1750844513978,14.79129428,145.39,145.35,6.8761]
[1750844514171,7.91659428,145.39,145.35,6.8761]
[1750844514577,6.875,145.38,145.35,6.8761]
[1750844514974,7.91659428,145.39,145.32,6.8778]
[1750844515182,5.65389428,145.37,145.29,2.4286]
[1750844515381,2.2627,145.39,145.3,5.65389428]
[1750844515581,2.2627,145.39,145.35,6.8761]
[1750844515979,6.875,145.38,145.35,6.8761]
[1750844516885,6.8756,145.37,145.34,6.8764]
[1750844517183,5.65389428,145.38,145.29,2.4286]
[1750844517375,6.8762,145.36,145.33,6.8771]
[1750844517576,12.53009428,145.36,145.29,2.4286]
[1750844517776,2.2627,145.39,145.29,8.08249428]
[1750844517989,12.52859428,145.39,145.29,8.08249428]
[1750844518585,12.52859428,145.39,145.35,6.8762]
[1750844518887,5.65389428,145.36,145.27,62.0]
[1750844519189,5.65389428,145.31,145.23,2.224]
[1750844519380,2.4158,145.35,145.23,2.224]
[1750844519579,6.8769,145.34,145.28,6.8794]
[1750844519781,2.4158,145.35,145.28,6.8794]
[1750844519988,12.53149428,145.33,145.28,6.8794]
[1750844520180,5.65389428,145.33,145.27,6.8801]
[1750844520392,5.65389428,145.31,145.24,2.2797]
[1750844520891,5.65389428,145.29,145.23,2.224]
[1750844521386,5.65389428,145.3,145.25,6.881]
[1750844521779,5.65389428,145.3,145.23,2.224]
[1750844521975,5.65389428,145.31,145.23,2.224]
[1750844522179,1.3915,145.34,145.23,2.224]
[1750844522381,5.65389428,145.31,145.23,2.224]
[1750844522792,5.65389428,145.3,145.23,2.224]
[1750844523288,5.65389428,145.4,145.23,2.224]
[1750844523480,5.65389428,145.35,145.23,2.224]
[1750844523676,5.65389428,145.35,145.24,5.65389428]
[1750844524082,5.65389428,145.33,145.29,6.8788]
[1750844524390,2.2064,145.39,145.25,2.4339]
[1750844524597,5.65389428,145.36,145.26,5.65389428]
[1750844524790,5.65389428,145.36,145.25,2.4339]
[1750844525089,5.65389428,145.36,145.23,2.224]
[1750844525090,5.65389428,145.29,145.23,2.224]
[1750844525278,5.65389428,145.31,145.26,6.8803]
[1750844525477,5.65389428,145.31,145.23,2.224]
[1750844525689,70.62,145.35,145.23,75.004]
[1750844525881,2.2064,145.39,145.23,75.004]
[1750844526187,5.65389428,145.33,145.23,80.65789428]
[1750844526391,2.2064,145.39,145.23,80.65789428]
[1750844526586,5.65389428,145.34,145.25,5.65389428]
[1750844526788,2.2064,145.39,145.25,5.65389428]
[1750844526985,5.65389428,145.32,145.23,75.004]
[1750844527497,2.2064,145.39,145.28,6.8797]
[1750844527790,5.65389428,145.33,145.24,5.65389428]
[1750844527990,6.8762,145.36,145.31,6.8781]
[1750844528290,5.65389428,145.35,145.31,6.8781]
[1750844528490,2.2064,145.39,145.24,5.65389428]
[1750844528792,5.65389428,145.34,145.3,6.8783]
[1750844529094,6.8767,145.35,145.3,6.8783]
[1750844529387,5.65389428,145.34,145.3,6.8783]
[1750844529588,12.53069428,145.34,145.29,6.8789]
[1750844530389,6.8765,145.35,145.3,6.8787]
[1750844530587,5.65389428,145.34,145.3,6.8787]
[1750844530783,6.88,145.35,145.22,2.2643]
[1750844531083,5.65389428,145.27,145.22,2.2643]
[1750844531284,5.65389428,145.29,145.22,2.2643]
[1750844531486,5.65389428,145.31,145.22,2.2643]
[1750844531689,5.65389428,145.31,145.26,6.8806]
[1750844531892,5.65389428,145.31,145.22,80.1043]
[1750844532285,5.65389428,145.29,145.24,6.8814]
[1750844532586,8.05019428,145.33,145.23,5.65389428]
[1750844532791,8.05019428,145.33,145.27,6.88]
[1750844533094,5.65389428,145.31,145.22,80.1043]
[1750844533290,5.65389428,145.3,145.22,80.1043]
[1750844533491,8.05019428,145.33,145.22,80.1043]
[1750844533788,5.65389428,145.33,145.24,5.65389428]
[1750844533990,5.65389428,145.38,145.28,5.65389428]
[1750844534292,5.65389428,145.38,145.3,5.65389428]
[1750844534485,3.6853,145.43,145.29,77.84]
[1750844534682,5.65389428,145.36,145.29,77.84]
[1750844535593,5.65389428,145.36,145.3,2.214]
[1750844536194,5.65389428,145.36,145.32,6.8775]
[1750844536589,12.52909428,145.38,145.3,2.214]
[1750844536790,6.8752,145.38,145.34,6.8767]
[1750844536993,12.52909428,145.38,145.34,6.8767]
[1750844537189,5.65389428,145.38,145.34,6.8767]
[1750844537491,5.65389428,145.38,145.32,2.3114]
[1750844537691,12.52889428,145.38,145.32,2.3114]
[1750844538692,12.52889428,145.38,145.33,6.8772]
[1750844539189,6.8755,145.37,145.32,2.3114]
[1750844539497,6.8755,145.37,145.32,9.1891]
[1750844540086,6.8755,145.37,145.33,6.8773]
[1750844540895,6.8761,145.36,145.32,9.189]
[1750844541096,5.65389428,145.36,145.32,6.8776]
[1750844541488,5.65389428,145.36,145.3,2.214]
[1750844541988,12.52979428,145.36,145.3,2.214]
[1750844542295,6.8759,145.36,145.3,2.214]
[1750844542499,3.6853,145.43,145.3,2.214]
[1750844542695,5.65389428,145.38,145.3,2.214]
[1750844542895,5.65389428,145.4,145.31,5.65389428]
[1750844543092,3.6853,145.43,145.31,5.65389428]
[1750844543293,5.65389428,145.41,145.31,5.65389428]
[1750844543996,6.8743,145.4,145.36,6.8756]
[1750844544392,6.8743,145.4,145.31,5.65389428]
[1750844544596,6.8746,145.39,145.35,6.8762]
[1750844544896,5.65389428,145.41,145.35,6.8762]
[1750844545195,6.8742,145.4,145.35,6.8762]
[1750844545397,5.65389428,145.41,145.35,6.8762]
[1750844545694,6.8745,145.39,145.36,6.8758]
[1750844545998,6.8745,145.39,145.3,2.214]
[1750844545999,5.65389428,145.42,145.32,5.65389428]
[1750844546499,6.8738,145.41,145.37,6.8751]
[1750844546895,5.65389428,145.42,145.37,6.8751]
[1750844547091,6.8737,145.41,145.38,6.8749]
[1750844547292,5.65389428,145.42,145.34,5.65389428]
[1750844547489,12.52709428,145.42,145.35,2.2642]
[1750844547794,5.65389428,145.42,145.35,2.2642]
[1750844548201,6.8736,145.41,145.37,6.8754]
[1750844548397,6.8736,145.41,145.35,2.2642]
[1750844549398,5.65389428,145.4,145.31,5.65389428]
[1750844549598,5.65389428,145.4,145.32,2.2642]
[1750844550006,12.52819428,145.4,145.32,2.2642]
[1750844550502,12.52819428,145.4,145.36,6.8756]
[1750844551200,6.8745,145.39,145.36,6.8756]
[1750844551502,6.8745,145.39,145.35,6.8761]
[1750844551702,6.8745,145.39,145.32,2.2642]
[1750844551905,12.52809428,145.4,145.36,6.8755]
[1750844553092,5.65389428,145.4,145.35,6.8763]
[1750844553298,5.65389428,145.38,145.32,2.2642]
[1750844553690,12.52929428,145.38,145.34,6.8766]
[1750844553896,6.8754,145.38,145.34,6.8766]
[1750844554195,12.52929428,145.38,145.35,6.8761]
[1750844554395,5.65389428,145.38,145.35,6.8761]
[1750844555003,12.52909428,145.38,145.35,6.8761]
[1750844555206,12.52909428,145.38,145.34,6.8766]
[1750844555403,12.52909428,145.38,145.32,2.2642]
[1750844555903,77.84,145.45,145.32,2.2642]
[1750844556113,77.84,145.45,145.33,5.65389428]
[1750844556407,90.36579428,145.45,145.37,5.65389428]
[1750844556604,90.36579428,145.45,145.38,2.3574]
[1750844556806,83.49389428,145.45,145.38,4.6401]
[1750844557108,5.65389428,145.43,145.33,19.40819428]
[1750844557307,77.84,145.45,145.34,4.6401]
[1750844557513,5.65389428,145.43,145.34,4.6401]
[1750844558004,6.8733,145.42,145.34,4.6401]
[1750844558205,5.65389428,145.43,145.34,78.5001]
[1750844558501,83.49389428,145.45,145.41,6.8732]
[1750844558705,2.2512,145.49,145.35,5.65389428]
[1750844558898,5.65389428,145.45,145.35,5.65389428]
[1750844559098,5.65389428,145.45,145.36,2.437]
[1750844559704,6.8726,145.43,145.4,6.8738]
[1750844560104,5.65389428,145.45,145.4,6.8738]
[1750844560304,5.65389428,145.45,145.41,6.8734]
[1750844560508,5.65389428,145.45,145.36,2.437]
[1750844561102,2.2512,145.49,145.4,6.8737]
[1750844561297,5.65389428,145.44,145.4,6.8737]
[1750844561503,5.65389428,145.44,145.36,2.437]
[1750844561702,12.52699428,145.42,145.38,6.8748]
[1750844562009,5.65389428,145.42,145.36,2.437]
[1750844562208,5.65389428,145.42,145.39,6.8743]
[1750844562709,5.65389428,145.42,145.36,2.437]
[1750844563409,5.65389428,145.42,145.39,6.8741]
[1750844563802,12.52699428,145.42,145.39,6.8741]
[1750844563998,5.65389428,145.42,145.37,6.8754]
[1750844564203,3.40508917,145.41,145.34,2.3574]
[1750844564601,3.40508917,145.41,145.38,6.8748]
[1750844564908,6.8733,145.42,145.38,6.8748]
[1750844565107,6.8737,145.41,145.38,6.8748]
[1750844565309,3.40508917,145.42,145.38,6.8748]
[1750844565807,3.40508917,145.4,145.34,2.3574]
[1750844566213,5.67566562,145.41,145.34,2.3574]
[1750844566514,6.8741,145.4,145.34,2.3574]
[1750844566713,5.67566562,145.39,145.34,2.3574]
[1750844567013,5.67566562,145.39,145.35,6.8761]
[1750844567014,12.55036562,145.39,145.35,6.8761]
[1750844567212,6.8747,145.39,145.35,6.8761]
[1750844567801,5.67566562,145.4,145.34,9.2341]
[1750844568005,5.67566562,145.38,145.34,6.8767]
[1750844568206,12.55076562,145.38,145.34,6.8767]
[1750844568512,5.67566562,145.38,145.34,6.8767]
[1750844568813,6.8755,145.37,145.34,6.8767]
[1750844569812,6.876,145.36,145.33,6.8771]
[1750844570012,5.67566562,145.38,145.33,6.8771]
[1750844570208,6.8767,145.35,145.32,6.8774]
[1750844570415,6.8767,145.35,145.3,6.8516]
[1750844570808,6.8767,145.35,145.32,6.8775]
[1750844572415,6.8767,145.35,145.33,6.8773]
[1750844572619,5.67566562,145.38,145.3,6.8516]
[1750844572919,5.67566562,145.38,145.34,6.8766]
[1750844573122,6.8756,145.37,145.34,6.8766]
[1750844573316,5.67566562,145.38,145.3,6.8516]
[1750844573617,6.8761,145.36,145.3,6.8516]
[1750844574121,6.8752,145.38,145.3,6.8516]
[1750844574421,5.67566562,145.39,145.3,6.8516]
[1750844574623,6.8748,145.39,145.3,12.52726562]
[1750844574825,5.67566562,145.36,145.3,6.8516]
[1750844575027,5.67566562,145.36,145.31,6.878]
[1750844575227,6.8767,145.35,145.31,6.878]
[1750844576522,6.8762,145.36,145.32,6.8778]
[1750844576730,5.67566562,145.36,145.32,6.8778]
[1750844578134,1.3914,145.42,145.32,6.8778]
[1750844578322,5.67566562,145.36,145.32,6.8778]
[1750844578621,5.67566562,145.36,145.3,6.8516]
[1750844580134,12.55176562,145.36,145.3,6.8516]
[1750844580336,5.67566562,145.36,145.3,4.6435]
[1750844580527,5.67566562,145.34,145.3,2.3378]
[1750844581032,5.67566562,145.4,145.17,595.3380377]
[1750844581033,5.67566562,145.31,145.17,595.3380377]
[1750844581240,5.67566562,145.29,145.22,4.7316]
[1750844581431,5.67566562,145.29,145.26,6.8803]
[1750844582033,5.67566562,145.29,145.27,6.8801]
[1750844582227,5.67566562,145.3,145.22,4.7316]
[1750844582638,12.55476562,145.3,145.26,6.8803]
[1750844582935,12.55476562,145.3,145.22,4.7316]
[1750844583631,5.67566562,145.3,145.22,4.7316]
[1750844584230,6.8793,145.29,145.22,4.7316]
[1750844584634,5.67566562,145.3,145.22,4.7316]
[1750844585033,5.67566562,145.3,145.27,6.8799]
[1750844585229,2.2681,145.35,145.22,4.7316]
[1750844585535,5.67566562,145.23,145.21,5.6631612]
[1750844585836,12.55776562,145.23,145.14,2.3053]
[1750844586033,12.55776562,145.23,145.15,2.307]
[1750844586229,5.67566562,145.23,145.15,2.307]
[1750844586537,6.8825,145.22,145.17,6.8848]
[1750844586736,5.67566562,145.23,145.15,2.307]
[1750844587230,6.8835,145.2,145.15,9.1927]
[1750844588141,5.67566562,145.21,144.99,13.7869]
[1750844588330,3.41535913,145.21,145.12,3.41535913]
[1750844588529,69.96,145.23,145.14,3.41535913]
[1750844588836,3.41535913,145.21,145.14,3.41535913]
[1750844589134,76.8422,145.23,145.12,2.3196]
[1750844589335,69.96,145.23,145.16,3.41535913]
[1750844589535,69.96,145.23,145.17,4.6118]
[1750844589735,6.8802,145.27,145.21,6.8827]
[1750844589936,3.41535913,145.26,145.18,5.73495913]
[1750844590131,6.8802,145.27,145.2,3.41535913]
[1750844590333,73.37535913,145.28,145.2,3.41535913]
[1750844591029,73.37535913,145.28,145.18,2.3196]
[1750844591226,80.25505913,145.28,145.23,6.8817]
[1750844591430,80.25505913,145.28,145.2,3.41535913]
[1750844591838,80.25505913,145.28,145.23,6.8816]
[1750844592036,80.25505913,145.28,145.2,3.41535913]
[1750844592233,72.1704,145.33,145.2,5.68480109]
[1750844592441,5.68480109,145.31,145.22,5.68480109]
[1750844592638,5.68480109,145.31,145.23,4.6091]
[1750844592838,5.68480109,145.31,145.25,6.8809]
[1750844593042,5.68480109,145.29,145.23,4.6091]
[1750844593234,6.8798,145.28,145.23,4.6091]
[1750844593540,6.8798,145.28,145.23,11.4908]
[1750844594241,5.68480109,145.29,145.23,4.6091]
[1750844594636,6.8797,145.28,145.24,6.8814]
[1750844594832,6.8797,145.28,145.23,4.6091]
[1750844595440,6.8797,145.28,145.24,6.8813]
[1750844595628,12.56410109,145.29,145.23,4.6091]
[1750844595941,5.68480109,145.29,145.23,4.6091]
[1750844596141,6.8797,145.28,145.24,6.8814]
[1750844596332,5.68480109,145.29,145.23,4.6091]
[1750844596740,72.1704,145.33,145.23,4.6091]
[1750844596938,5.68480109,145.29,145.23,4.6091]
[1750844597241,12.56440109,145.29,145.25,6.8808]
[1750844597434,5.68480109,145.29,145.25,6.8808]
[1750844597841,6.8797,145.28,145.25,6.8808]
[1750844600447,5.68480109,145.31,145.23,4.6091]
[1750844600949,6.8789,145.3,145.23,4.6091]
[1750844601650,6.8789,145.3,145.27,6.8799]
[1750844602342,5.68480109,145.31,145.23,4.6091]
[1750844603845,5.68480109,145.31,145.26,6.8802]
[1750844604256,6.8791,145.3,145.27,6.8801]
[1750844605453,6.8793,145.29,145.27,6.8801]
[1750844606857,6.8793,145.29,145.26,6.8804]
[1750844607754,5.68480109,145.29,145.25,6.8808]
[1750844608154,5.68480109,145.27,145.19,4.5449]
[1750844608346,5.68480109,145.25,145.19,4.5449]
[1750844608543,6.8808,145.26,145.23,6.8817]
[1750844608747,5.68480109,145.27,145.23,6.8817]
[1750844609754,6.8811,145.26,145.23,6.8817]
[1750844610055,5.68480109,145.27,145.22,6.8823]
[1750844610255,6.8814,145.25,145.22,6.8823]
[1750844610455,6.8814,145.25,145.19,4.5449]
[1750844611356,6.8814,145.25,145.22,6.8823]
[1750844612053,6.8816,145.24,145.22,6.8823]
[1750844612254,3.41229117,145.25,145.19,4.5449]
[1750844612655,6.8817,145.24,145.19,4.5449]
[1750844613257,10.29359117,145.25,145.22,6.8822]
[1750844613647,3.41229117,145.25,145.19,4.5449]
[1750844613853,3.41229117,145.29,145.21,3.41229117]
[1750844614858,10.29149117,145.29,145.26,6.8804]
[1750844615060,3.41229117,145.29,145.23,3.41229117]
[1750844615356,3.41229117,145.31,145.23,3.41229117]
[1750844615557,10.29089117,145.31,145.28,6.8795]
[1750844615759,10.29089117,145.31,145.24,2.3443]
[1750844615958,6.8786,145.31,145.24,2.3443]
[1750844616258,6.8788,145.3,145.25,2.3078]
[1750844616557,6.8788,145.3,145.27,6.8799]
[1750844616859,72.1704,145.33,145.27,6.8799]
[1750844617152,69.96,145.33,145.28,6.8794]
[1750844617359,3.41229117,145.32,145.25,4.5546]
[1750844617657,6.8786,145.31,145.27,6.8798]
[1750844619560,6.8786,145.31,145.25,4.5546]
[1750844619561,3.41229117,145.3,145.26,6.8803]
[1750844620061,6.8795,145.29,145.26,6.8803]
[1750844620263,69.96,145.33,145.27,6.8801]
[1750844620461,3.41229117,145.3,145.27,6.8801]
[1750844620654,10.29129117,145.3,145.27,6.8801]
[1750844621562,6.8793,145.29,145.26,6.8804]
[1750844621763,6.8793,145.29,145.25,2.3078]
[1750844622670,10.29119117,145.3,145.27,6.88]
[1750844622965,3.41229117,145.3,145.27,6.88]
[1750844623561,6.8795,145.29,145.26,6.8805]
[1750844623765,6.8795,145.29,145.25,2.3078]
[1750844624367,10.29129117,145.3,145.25,2.3078]
[1750844624566,3.41229117,145.3,145.25,2.3078]
[1750844624754,6.8785,145.31,145.25,2.3078]
[1750844624958,10.29079117,145.31,145.25,2.3078]
[1750844625159,3.41229117,145.31,145.25,2.3078]
[1750844625359,10.29059117,145.31,145.25,2.3078]
[1750844625668,3.41229117,145.31,145.25,2.3078]
[1750844625966,69.96,145.33,145.25,2.3078]
[1750844625967,80.24979117,145.33,145.3,6.8787]
[1750844626664,3.41229117,145.33,145.3,6.8787]
[1750844626866,3.41229117,145.33,145.25,2.3078]
[1750844627060,3.41229117,145.31,145.25,2.3078]
[1750844627571,3.41229117,145.36,145.25,2.3078]
[1750844627760,3.41229117,145.3,145.25,2.3078]
[1750844627959,3.41229117,145.3,145.27,6.8798]
[1750844628161,3.41229117,145.3,145.25,2.3078]
[1750844628361,3.41229117,145.28,145.25,2.3078]
[1750844628967,3.41229117,145.28,145.25,9.1886]
[1750844629470,62.0,145.32,145.28,6.8796]
[1750844629668,65.41229117,145.32,145.28,6.8796]
[1750844630068,72.29029117,145.32,145.29,6.8791]
[1750844630370,65.41229117,145.32,145.29,6.8791]
[1750844630670,72.29029117,145.32,145.28,6.8794]
[1750844631071,65.41229117,145.32,145.25,2.3078]
[1750844631370,3.41229117,145.33,145.25,5.72009117]
[1750844632169,3.41229117,145.33,145.29,6.8789]
[1750844632769,6.878,145.32,145.29,6.8789]
[1750844633570,6.878,145.32,145.3,6.8786]
[1750844634265,3.41229117,145.33,145.31,6.8781]
[1750844634472,3.41229117,145.35,145.26,3.41229117]
[1750844634671,3.41229117,145.35,145.28,3.41229117]
[1750844634973,3.41229117,145.35,145.27,4.4977]
[1750844635158,3.41229117,145.33,145.27,4.4977]
[1750844635364,3.41229117,145.31,145.29,6.8788]
[1750844635866,3.41229117,145.31,145.29,6.8789]
[1750844637571,3.41229117,145.32,145.27,2.2607]
[1750844638370,6.8783,145.31,145.28,6.8792]
[1750844639165,15.9903,145.39,145.27,2.2607]
[1750844639365,3.41229117,145.37,145.3,3.41229117]
[1750844639564,6.8753,145.38,145.34,6.8765]
[1750844639771,657.59229117,145.4,145.32,3.41229117]
[1750844640270,6.8749,145.39,145.33,2.2427]
[1750844640674,10.28829117,145.36,145.33,6.877]
[1750844641070,3.41229117,145.36,145.31,2.4107]
[1750844641975,6.8766,145.35,145.32,6.8776]
[1750844643175,6.8766,145.35,145.31,2.4107]
[1750844643579,654.18,145.4,145.31,2.4107]
[1750844643778,3.41229117,145.36,145.34,6.8767]
[1750844644779,3.41229117,145.32,145.19,594.34]
[1750844644980,63.6577,145.35,145.21,6.9257]
[1750844645175,3.41229117,145.28,145.25,6.8807]
[1750844645374,3.41229117,145.29,145.25,6.8807]
[1750844645576,3.41229117,145.27,145.24,6.8814]
[1750844646776,63.6577,145.35,145.21,6.9257]
[1750844646777,3.41229117,145.25,145.21,6.9257]
[1750844647680,10.29369117,145.25,145.21,4.7001]
[1750844647880,3.41229117,145.25,145.21,4.7001]
[1750844648180,59.82,145.3,145.22,6.8825]
[1750844648382,5.68732507,145.26,145.22,6.8825]
[1750844649181,12.56822507,145.26,145.22,6.8825]
[1750844650584,5.68732507,145.26,145.23,6.882]
[1750844651886,5.68732507,145.24,145.13,121.84]
[1750844652194,5.68732507,145.19,145.14,2.3315]
[1750844652375,5.68732507,145.17,145.14,2.3315]
[1750844652574,5.68732507,145.17,145.13,2.2566]
[1750844652982,5.68732507,145.17,145.1,61.68]
[1750844653183,3.7597,145.23,145.11,2.3551]
[1750844653488,5.68732507,145.21,145.12,5.68732507]
[1750844653990,6.8835,145.2,145.12,5.68732507]
[1750844654391,6.8835,145.2,145.16,6.8853]
[1750844655178,6.884,145.19,145.11,2.3551]
[1750844655381,3.7597,145.23,145.11,2.3551]
[1750844655583,5.68732507,145.19,145.11,2.3551]
[1750844655885,6.8847,145.18,145.11,2.3551]
[1750844656184,5.68732507,145.19,145.11,2.3551]
[1750844656386,6.8857,145.16,145.12,6.8872]
[1750844656590,3.7597,145.23,145.11,2.3551]
[1750844656786,5.68732507,145.18,145.11,2.3551]
[1750844656986,12.57212507,145.18,145.14,6.8861]
[1750844657293,6.8848,145.18,145.14,6.8861]
[1750844658289,6.8849,145.17,145.11,2.3551]
[1750844658488,5.68732507,145.19,145.11,2.3551]
[1750844658692,6.8845,145.18,145.13,6.8863]
[1750844658890,6.8845,145.18,145.11,2.3551]
[1750844659393,6.8849,145.17,145.11,2.3551]
[1750844659599,3.7597,145.23,145.11,2.3551]
[1750844659899,5.68732507,145.2,145.11,2.3551]
[1750844660100,61.72,145.19,145.09,2.3315]
[1750844660402,5.68732507,145.15,145.09,2.3315]
[1750844660600,5.68732507,145.17,145.09,2.3315]
[1750844661104,6.8854,145.16,145.11,6.8876]
[1750844661601,5.68732507,145.17,145.11,6.8876]
[1750844662098,6.8859,145.15,145.11,6.8876]
[1750844662297,61.72,145.19,145.12,6.8872]
[1750844662699,6.8857,145.16,145.12,6.8872]
[1750844662897,5.68732507,145.17,145.13,6.8864]
[1750844663096,5.68732507,145.18,145.13,6.8864]
[1750844663399,5.68732507,145.17,145.12,6.8872]
[1750844663901,5.68732507,145.17,145.09,8.01882507]
[1750844664100,5.68732507,145.15,145.09,2.3315]
[1750844664797,6.8871,145.13,145.09,2.3315]